bitfinex/quotes_ETHUSD_20220120
["timestamp","ask_amount","ask_price","bid_price","bid_amount"]
[1642665334622,0.5933,3140.8,3140.6,0.00454739]
[1642665335423,0.466,3140.8,3140.6,0.00454739]
[1642665335662,1.31746281,3140.7,3140.6,0.00454739]
[1642665335864,1.61746281,3140.7,3140.6,0.00454739]
[1642665336262,1.74476281,3140.7,3140.2,0.00682108]
[1642665336562,1.61746281,3140.7,3140.2,0.00682108]
[1642665337864,1.61746281,3140.7,3140.2,0.30682108]
[1642665338265,1.74476281,3140.7,3140.2,0.00682108]
[1642665338465,1.31746281,3140.7,3140.2,0.30682108]
[1642665339165,1.31746281,3140.7,3140.2,0.00682108]
[1642665339417,0.5933,3140.8,3140.2,0.00682108]
[1642665339617,0.466,3140.8,3140.2,0.30682108]
[1642665340021,0.766,3140.8,3140.2,0.30682108]
[1642665341419,0.766,3140.8,3140.2,0.00682108]
[1642665341618,0.766,3140.8,3140.1,1.55929108]
[1642665341818,0.00284211,3140.7,3140.1,1.55929108]
[1642665342218,0.00227369,3140.6,3140.1,1.55929108]
[1642665342621,0.00170527,3140.5,3140.1,1.55929108]
[1642665342818,0.00170527,3140.5,3140.2,0.3]
[1642665343069,0.00113684,3140.4,3140.2,0.3]
[1642665343465,0.00284211,3140.7,3140.2,0.3]
[1642665343865,0.00227369,3140.6,3140.2,0.3]
[1642665344265,0.00170527,3140.5,3140.2,0.3]
[1642665344669,0.00113684,3140.4,3140.2,0.3]
[1642665345070,0.466,3141.0,3140.4,0.79611]
[1642665345275,0.466,3141.0,3140.5,0.79612]
[1642665345472,0.00397896,3140.9,3140.5,1.09612]
[1642665345871,2.52056437,3140.8,3140.5,1.09612]
[1642665346071,2.51715383,3140.7,3140.5,1.09612]
[1642665346272,2.51999594,3140.7,3140.5,1.09612]
[1642665346470,2.51942752,3140.6,3140.5,1.09612]
[1642665346916,0.00227369,3140.6,3140.5,1.09612]
[1642665347519,0.466,3141.0,3140.5,1.09612]
[1642665347715,7.40525004,3141.8,3140.5,1.09612]
[1642665347716,0.50350966,3142.3,3140.9,0.01204141]
[1642665347920,1.61500244,3142.3,3141.0,0.02443912]
[1642665348116,1.61500244,3142.2,3141.0,2.38738]
[1642665348317,1.61500244,3142.5,3141.1,0.1273]
[1642665348518,1.14998424,3142.1,3141.3,1.47729447]
[1642665348724,1.14998424,3142.1,3141.4,0.1273]
[1642665348916,1.14998424,3142.1,3141.5,1.59166]
[1642665348917,0.00795793,3142.0,3141.5,1.59166]
[1642665349321,0.00738951,3141.9,3141.5,1.89166]
[1642665349721,0.00682108,3141.8,3141.5,1.89166]
[1642665350120,0.00625266,3141.7,3141.5,1.89166]
[1642665350321,0.00625266,3141.7,3141.5,0.79583]
[1642665350588,0.00568424,3141.6,3141.0,0.1273]
[1642665350767,0.00568424,3141.6,3140.7,0.1273]
[1642665350768,1.55786945,3141.5,3140.7,0.1273]
[1642665350967,1.55786945,3141.5,3140.6,1.5920123]
[1642665350968,4.66407581,3141.4,3140.6,1.5920123]
[1642665351169,2.51099669,3141.4,3140.6,1.5920123]
[1642665351367,0.00397896,3141.3,3140.6,1.5920123]
[1642665351767,0.00341054,3141.2,3140.6,1.5920123]
[1642665351970,1.55750235,3141.0,3140.6,1.5920123]
[1642665352367,0.00170527,3140.9,3140.6,1.5920123]
[1642665352868,0.00113685,3140.8,3140.6,1.5920123]
[1642665353268,0.00170527,3140.9,3140.6,1.5920123]
[1642665353669,0.00113685,3140.8,3140.6,1.5920123]
[1642665353869,0.00113685,3140.8,3140.2,0.9234525]
[1642665354069,1.55750235,3141.0,3140.2,0.1273]
[1642665354070,1.65637753,3140.9,3140.2,0.1273]
[1642665354316,0.00170527,3140.9,3140.3,0.00170527]
[1642665354520,1.55750235,3141.0,3140.3,0.00170527]
[1642665354521,0.00113685,3140.8,3140.3,0.00170527]
[1642665354921,0.00170527,3140.9,3140.3,0.00170527]
[1642665355226,0.00113685,3140.8,3140.3,0.00170527]
[1642665355723,3.24122228,3141.0,3140.3,0.00170527]
[1642665355724,0.00170527,3140.9,3140.3,0.00170527]
[1642665356121,0.00113685,3140.8,3140.3,0.00170527]
[1642665356520,3.24122228,3141.0,3140.3,0.00170527]
[1642665356521,0.00170527,3140.9,3140.3,0.00170527]
[1642665356722,1.61670771,3140.9,3140.3,0.00170527]
[1642665356921,0.00113685,3140.8,3140.3,0.00170527]
[1642665358169,1.61613929,3140.8,3140.3,0.00170527]
[1642665358372,1.61500244,3140.7,3140.3,0.00170527]
[1642665358767,1.61500244,3140.6,3140.3,0.00170527]
[1642665358967,1.60600244,3140.6,3140.3,0.00170527]
[1642665359772,1.26053142,3140.5,3140.3,0.00170527]
[1642665359975,2.42257608,3140.6,3140.3,0.00170527]
[1642665360776,2.42257608,3140.5,3140.3,0.00170527]
[1642665361176,3.69279202,3140.5,3140.3,0.00170527]
[1642665361377,3.69279202,3140.5,3140.2,0.00227369]
[1642665362027,2.42257608,3140.4,3140.2,0.00227369]
[1642665362229,1.93104382,3140.3,3140.2,0.00227369]
[1642665362629,3.05,3140.2,3140.1,0.00921197]
[1642665362927,4.8994984,3140.2,3140.1,0.00921197]
[1642665363127,6.6959784,3140.2,3140.1,0.00921197]
[1642665365871,5.6959784,3140.2,3140.1,0.00921197]
[1642665367474,7.31025891,3140.2,3140.1,0.00921197]
[1642665367677,6.51377891,3140.2,3140.1,0.00921197]
[1642665367975,5.13028051,3140.2,3140.1,0.00921197]
[1642665368377,2.70329299,3140.2,3140.1,0.00921197]
[1642665369623,4.85219829,3140.2,3140.1,0.00921197]
[1642665369823,4.87025359,3140.2,3140.1,0.00921197]
[1642665370024,2.70329299,3140.2,3140.1,0.00921197]
[1642665374778,4.32016953,3140.2,3140.1,0.00921197]
[1642665375179,3.85416953,3140.2,3140.1,0.00921197]
[1642665375477,2.23729299,3140.2,3140.1,0.00921197]
[1642665375679,3.85378715,3140.2,3140.1,0.00921197]
[1642665375882,2.23729299,3140.2,3140.1,0.00921197]
[1642665376078,1.61657921,3140.2,3140.1,0.00921197]
[1642665376282,3.8538722,3140.2,3140.1,0.00921197]
[1642665376682,2.23729299,3140.2,3140.1,0.00921197]
[1642665377735,3.85277798,3140.2,3140.1,0.00921197]
[1642665378535,3.85192973,3140.2,3140.1,0.00921197]
[1642665379635,1.61548499,3140.2,3140.1,0.00921197]
[1642665381273,1.61371255,3140.2,3140.1,0.00921197]
[1642665381475,2.23644474,3140.2,3140.1,0.00921197]
[1642665381875,2.23644474,3140.3,3140.1,0.00921197]
[1642665382074,2.23644474,3140.2,3140.1,0.00921197]
[1642665382677,2.23644474,3140.3,3140.1,0.00921197]
[1642665386126,4.35433154,3140.3,3140.1,0.00921197]
[1642665386328,2.23644474,3140.2,3140.1,0.00921197]
[1642665390483,6.17762503,3140.2,3140.1,0.00921197]
[1642665390682,0.03295378,3140.0,3139.7,0.01]
[1642665390982,0.5933,3139.9,3139.8,0.0022737]
[1642665391382,3.3,3139.8,3139.7,0.01]
[1642665391681,3.766,3139.8,3139.7,0.01]
[1642665392727,7.31120066,3139.8,3139.7,0.01]
[1642665394930,7.61120066,3139.8,3139.7,0.01]
[1642665396672,7.31120066,3139.8,3139.7,0.01]
[1642665399930,4.01120066,3139.8,3139.7,0.01]
[1642665400330,3.43778141,3139.8,3139.7,0.01]
[1642665404981,0.466,3139.8,3139.7,0.01]
[1642665405181,3.34427337,3139.8,3139.7,0.01]
[1642665405780,3.31204584,3139.8,3139.7,0.01]
[1642665409328,3.35625851,3139.8,3139.7,0.01]
[1642665410580,0.466,3139.8,3139.7,0.01]
[1642665411576,2.666,3139.8,3139.7,0.01]
[1642665414323,2.7933,3139.8,3139.7,0.01]
[1642665419277,2.7933,3139.8,3138.7,0.1273]
[1642665419278,4.75,3139.6,3138.7,0.1273]
[1642665419480,0.5934,3139.5,3138.5,1.1813]
[1642665419679,0.5934,3139.5,3138.8,0.00568423]
[1642665420081,1.223751,3139.2,3138.8,0.00568423]
[1642665420279,1.223751,3139.2,3138.5,0.0073895]
[1642665420280,0.0108909,3139.0,3138.5,0.0073895]
[1642665420481,0.5934,3138.9,3138.4,0.00795793]
[1642665420682,1.59375,3138.8,3138.4,0.00795793]
[1642665421482,1.1789481,3138.7,3138.4,0.00795793]
[1642665422524,0.79687,3138.8,3138.4,0.00795793]
[1642665422724,0.5934,3138.9,3138.4,0.00795793]
[1642665423524,1.86499451,3138.9,3138.4,0.00795793]
[1642665423723,1.86499451,3138.9,3138.4,0.80459553]
[1642665423924,1.73759451,3138.9,3138.4,0.93199553]
[1642665424124,1.73759451,3138.9,3138.5,0.0073895]
[1642665424324,1.73759451,3138.9,3138.6,0.1274]
[1642665424727,1.73759451,3138.9,3138.7,0.00625266]
[1642665425329,0.466,3138.9,3138.7,0.7965595]
[1642665425588,0.466,3138.9,3138.7,0.9239595]
[1642665426080,0.466,3138.9,3138.7,0.1274]
[1642665426479,0.466,3138.9,3138.6,0.00682108]
[1642665426880,0.466,3138.9,3138.5,0.0073895]
[1642665427283,0.466,3138.9,3138.6,0.1274]
[1642665427680,1.53987735,3138.8,3138.7,0.00625266]
[1642665429329,3.83987735,3138.8,3138.7,0.00625266]
[1642665429932,1.53987735,3138.8,3138.7,0.00625266]
[1642665432734,1.59358,3139.1,3138.7,0.00625266]
[1642665432934,2.05958,3139.1,3138.7,0.00625266]
[1642665433178,2.05958,3139.1,3138.5,0.0073895]
[1642665433378,1.26282,3139.1,3138.6,0.00682108]
[1642665433579,1.26282,3139.1,3138.4,0.00795793]
[1642665434176,1.30273167,3138.9,3138.4,0.00795793]
[1642665434383,1.30273167,3138.9,3138.5,0.1274]
[1642665434882,1.30273167,3138.9,3138.6,0.00682108]
[1642665435483,1.30273167,3138.9,3138.5,0.0073895]
[1642665436488,2.79981532,3138.8,3138.5,0.0073895]
[1642665436685,2.95403597,3139.0,3138.5,0.0073895]
[1642665436927,0.466,3139.1,3138.5,0.0073895]
[1642665437128,0.466,3139.1,3138.7,0.7966191]
[1642665437328,2.91877853,3139.0,3138.7,0.7966191]
[1642665437529,0.466,3139.1,3138.7,0.7966191]
[1642665437729,1.22195663,3138.8,3138.7,0.7966191]
[1642665438030,1.22195663,3138.8,3138.7,0.80287176]
[1642665438429,4.1493844,3138.8,3138.7,0.00625266]
[1642665438630,1.22195663,3138.8,3138.7,0.00625266]
[1642665440032,1.22195663,3138.8,3138.6,0.7966621]
[1642665440432,1.22195663,3138.8,3138.7,0.00625266]
[1642665440892,3.06891541,3139.2,3138.7,0.00625266]
[1642665441090,0.79665,3139.3,3138.7,0.13365266]
[1642665441291,0.5934,3139.5,3138.7,1.72679976]
[1642665441891,1.18076558,3138.9,3138.7,0.13365266]
[1642665442593,1.18076558,3138.9,3138.7,0.00625266]
[1642665443293,1.18076558,3138.9,3138.5,0.0073895]
[1642665443492,1.97754558,3138.9,3138.5,0.0073895]
[1642665444931,0.1274,3138.8,3138.5,0.0073895]
[1642665445131,1.97754558,3138.9,3138.5,0.0073895]
[1642665445531,1.18076558,3138.9,3138.4,0.00795793]
[1642665445931,1.18076558,3138.9,3138.4,1.60126713]
[1642665446334,1.18076558,3138.9,3138.5,0.8040314]
[1642665446732,1.18076558,3138.9,3138.6,0.00682108]
[1642665446935,0.1274,3139.0,3138.6,0.00682108]
[1642665447134,0.7967,3139.2,3138.6,0.00682108]
[1642665447135,0.1274,3139.3,3138.7,0.01983923]
[1642665447333,0.1274,3139.3,3138.6,0.00682108]
[1642665447534,1.2854,3139.4,3138.6,0.00682108]
[1642665448400,1.43639022,3139.3,3138.6,0.00682108]
[1642665448600,1.43639022,3139.3,3138.7,0.1274]
[1642665449000,1.43639022,3139.3,3138.8,0.7965832]
[1642665449406,1.43639022,3139.3,3138.9,0.00511581]
[1642665450107,1.158,3139.4,3138.9,0.00511581]
[1642665451407,1.51866828,3139.3,3138.9,0.00511581]
[1642665452828,2.22672724,3139.5,3138.9,0.00511581]
[1642665453128,0.14266828,3139.5,3138.9,0.00511581]
[1642665453627,2.19190545,3139.5,3138.9,0.00511581]
[1642665454029,0.14266828,3139.5,3138.9,0.00511581]
[1642665454228,2.17731668,3139.5,3138.9,0.00511581]
[1642665455032,0.14266828,3139.5,3138.9,0.00511581]
[1642665455232,0.14266828,3139.5,3138.9,0.13251581]
[1642665455687,0.14266828,3139.5,3139.0,0.80108838]
[1642665456088,0.14266828,3139.5,3139.1,0.00397896]
[1642665467026,0.1274,3139.4,3139.1,0.00397896]
[1642665468027,0.1274,3139.4,3139.0,0.00454738]
[1642665470786,1.42905429,3139.1,3139.0,0.00454738]
[1642665471385,1.42905429,3139.1,3138.9,1.57762928]
[1642665471787,0.1274,3139.4,3138.9,1.57762928]
[1642665472186,0.00170527,3139.3,3138.9,1.57762928]
[1642665472587,0.00113684,3139.2,3138.9,1.57762928]
[1642665472987,1.40596156,3139.1,3138.9,1.57762928]
[1642665473189,0.1274,3139.0,3138.9,1.57762928]
[1642665473789,0.1274,3139.0,3138.6,1.5933677]
[1642665474188,0.1274,3139.0,3138.7,0.00170528]
[1642665475336,1.53336156,3139.1,3138.7,0.00170528]
[1642665475534,1.99936156,3139.1,3138.7,0.00170528]
[1642665476935,2.79619156,3139.1,3138.5,0.00284212]
[1642665477134,0.79683,3139.0,3138.5,0.00284212]
[1642665477335,0.1274,3138.9,3138.5,0.00284212]
[1642665478179,1.31624563,3138.6,3138.5,0.00284212]
[1642665478780,0.1274,3138.9,3138.5,0.00284212]
[1642665480588,0.466,3139.1,3138.5,0.00284212]
[1642665481690,0.466,3139.1,3138.5,0.79957842]
[1642665482129,0.466,3139.1,3138.6,0.0022737]
[1642665482730,1.39925359,3139.0,3138.6,0.0022737]
[1642665483132,0.466,3139.1,3138.6,0.0022737]
[1642665485577,0.1274,3139.0,3138.6,0.0022737]
[1642665485781,0.1274,3139.1,3138.6,0.0022737]
[1642665485977,0.00113684,3139.2,3138.6,0.0022737]
[1642665486679,1.23933907,3139.0,3138.6,0.0022737]
[1642665488283,0.1274,3138.9,3138.6,0.0022737]
[1642665490138,0.1274,3139.1,3138.6,0.0022737]
[1642665493487,0.00113684,3139.2,3138.6,0.0022737]
[1642665494387,0.01419736,3139.0,3138.6,0.0022737]
[1642665494587,0.5934,3138.9,3138.6,0.0022737]
[1642665495587,0.466,3138.9,3138.6,0.0022737]
[1642665499738,0.416,3138.9,3138.6,0.0022737]
[1642665502185,0.1274,3138.8,3138.6,0.0022737]
[1642665502384,0.5934,3138.8,3138.6,0.0022737]
[1642665505137,0.466,3138.8,3138.6,0.0022737]
[1642665511938,0.466,3138.8,3138.6,0.03066413]
[1642665512139,0.466,3138.8,3138.5,0.7967363]
[1642665512341,0.416,3138.8,3138.7,0.00170528]
[1642665513138,0.466,3138.8,3138.7,0.00170528]
[1642665513539,5.0071,3139.4,3138.7,0.00170528]
[1642665513739,0.5934,3139.3,3138.7,0.00170528]
[1642665514139,0.00113684,3139.2,3138.7,0.00170528]
[1642665514342,0.466,3139.1,3138.7,0.00170528]
[1642665514945,0.466,3139.1,3138.8,2.3902328]
[1642665516287,0.1274,3139.0,3138.8,2.3902328]
[1642665516485,0.466,3138.9,3138.8,2.3902328]
[1642665516889,0.466,3138.9,3138.8,2.39136965]
[1642665524183,0.466,3138.9,3138.8,1.59462535]
[1642665528240,0.00113684,3139.2,3138.8,1.59462535]
[1642665528439,0.46713684,3139.2,3138.8,1.59462535]
[1642665530344,0.1274,3139.1,3138.8,1.59462535]
[1642665531185,0.1274,3139.1,3138.8,2.39136945]
[1642665534544,0.1074,3139.1,3138.8,2.39136945]
[1642665535047,0.46713684,3139.2,3138.8,2.39136945]
[1642665536846,0.00500025,3139.1,3138.8,2.39136945]
[1642665537046,0.1274,3139.0,3138.8,2.39136945]
[1642665537246,0.1274,3139.1,3138.8,2.39136945]
[1642665538787,0.466,3139.0,3138.8,2.39136945]
[1642665541391,0.00113684,3139.2,3138.9,4.85]
[1642665541594,0.00113684,3139.2,3138.9,6.26102592]
[1642665541842,0.1274,3139.8,3139.0,4.85]
[1642665542038,0.1274,3140.0,3139.0,4.85]
[1642665542235,0.0022737,3139.6,3139.1,3.35468114]
[1642665542436,0.0022737,3139.6,3139.4,1.32415725]
[1642665542635,0.00170527,3139.5,3139.4,1.62415725]
[1642665543038,0.1274,3140.1,3139.5,3.4463743]
[1642665543435,0.1274,3140.1,3139.6,0.00227369]
[1642665545039,0.1274,3140.1,3139.6,1.59506359]
[1642665545439,0.1274,3140.1,3139.7,0.00170527]
[1642665546189,0.1274,3140.1,3139.7,1.59449777]
[1642665546591,0.1274,3140.1,3139.8,0.00113685]
[1642665547792,0.1274,3140.1,3139.7,0.00170527]
[1642665547994,2.23644474,3140.2,3139.7,0.00170527]
[1642665548393,1.4954539,3140.1,3139.7,0.00170527]
[1642665548593,2.9475659,3140.1,3139.7,0.00170527]
[1642665548792,0.1273,3140.1,3139.7,0.00170527]
[1642665548993,0.1273,3140.1,3139.4,0.00341054]
[1642665549444,2.97561428,3140.1,3139.4,0.00341054]
[1642665549644,0.1273,3140.1,3139.4,0.00341054]
[1642665549842,3.01492011,3140.1,3139.4,0.00341054]
[1642665550041,0.1273,3140.1,3139.4,0.00341054]
[1642665551442,0.1273,3140.1,3139.4,3.20341054]
[1642665551843,0.1273,3140.1,3139.5,0.00284212]
[1642665553891,0.1273,3140.1,3139.5,0.79929682]
[1642665554392,0.1273,3140.1,3139.6,0.00227369]
[1642665555592,0.92385,3140.1,3139.6,0.00227369]
[1642665555793,0.92385,3140.1,3139.5,0.00284212]
[1642665556594,0.1273,3140.1,3139.5,0.79929782]
[1642665557039,0.1273,3140.1,3139.6,0.00227369]
[1642665558442,2.23644474,3140.2,3139.6,0.00227369]
[1642665560450,3.03298474,3140.2,3139.6,0.00227369]
[1642665560693,0.01888183,3140.0,3139.6,0.00227369]
[1642665560893,0.01888183,3140.0,3139.5,0.00284212]
[1642665561495,3.03298474,3140.2,3139.5,0.00284212]
[1642665561496,2.23644474,3140.2,3139.5,0.00284212]
[1642665562794,2.36374474,3140.2,3139.5,0.00284212]
[1642665563195,3.03296474,3140.2,3139.5,0.00284212]
[1642665563395,0.1273,3140.1,3139.5,0.00284212]
[1642665564095,0.1273,3140.1,3139.5,0.79930602]
[1642665564543,0.1273,3140.1,3139.6,0.00227369]
[1642665565144,0.1273,3140.1,3139.5,0.00284212]
[1642665571698,3.03296474,3140.2,3139.5,0.00284212]
[1642665572341,2.23644474,3140.2,3139.5,0.00284212]
[1642665576800,2.23644474,3140.2,3139.6,0.01888507]
[1642665576996,2.23644474,3140.2,3139.5,4.35237548]
[1642665577196,2.23644474,3140.2,3139.8,0.01106963]
[1642665577397,1.40740874,3140.2,3139.8,0.01106963]
[1642665577597,1.40740874,3140.2,3139.9,0.1586]
[1642665577997,1.40740874,3140.2,3139.7,1.36393]
[1642665578297,1.40740874,3140.2,3139.8,0.12843685]
[1642665578498,1.40740874,3140.2,3140.1,1.57050808]
[1642665578897,1.40854559,3140.2,3140.1,1.57050808]
[1642665579350,1.40854559,3140.2,3140.1,1.69780808]
[1642665580046,1.40854559,3140.2,3140.1,0.4273]
[1642665580245,1.40854559,3140.2,3140.1,0.1273]
[1642665580645,1.40854559,3140.2,3140.1,0.4273]
[1642665581545,1.40854559,3140.2,3140.1,0.3]
[1642665581745,1.40854559,3140.2,3140.1,3.2]
[1642665582645,1.40854559,3140.2,3140.1,3.3273]
[1642665584695,1.40854559,3140.2,3140.1,3.2]
[1642665586697,4.28066112,3140.2,3140.1,3.2]
[1642665586946,4.28066112,3140.2,3140.1,3.5]
[1642665587745,4.28066112,3140.2,3140.1,3.2]
[1642665588545,1.40854559,3140.2,3140.1,3.2]
[1642665589146,1.40854559,3140.2,3140.1,3.52620435]
[1642665589753,1.40854559,3140.2,3140.1,3.22620435]
[1642665590151,4.24353249,3140.2,3140.1,3.22620435]
[1642665591297,1.40854559,3140.2,3140.1,3.22620435]
[1642665591895,1.40854559,3140.2,3140.1,3.52620435]
[1642665592399,1.40854559,3140.2,3140.1,3.22620435]
[1642665592400,4.24078322,3140.2,3140.1,3.22620435]
[1642665592596,4.24631225,3140.2,3140.1,3.22620435]
[1642665594096,1.40854559,3140.2,3140.1,3.2]
[1642665598897,1.40854559,3140.2,3140.1,3.5]
[1642665599096,1.40854559,3140.2,3140.1,3.2]
[1642665600403,1.40854559,3140.2,3140.1,3.12878318]
[1642665601204,1.53584559,3140.2,3140.1,3.12878318]
[1642665601703,1.40854559,3140.2,3140.1,3.42878318]
[1642665602342,1.40854559,3140.2,3140.1,3.43263603]
[1642665602541,1.40854559,3140.2,3140.1,3.55993603]
[1642665602744,1.40854559,3140.2,3140.1,3.85993603]
[1642665605796,1.40854559,3140.2,3140.1,3.55993603]
[1642665605992,1.40740874,3140.2,3140.1,3.55993603]
[1642665606393,1.40740874,3140.2,3140.1,3.43263603]
[1642665606594,1.40854559,3140.2,3140.1,3.43263603]
[1642665609348,1.51308007,3140.2,3140.1,3.43263603]
[1642665609547,1.61761455,3140.2,3140.1,3.43263603]
[1642665614596,2.42698752,3140.4,3140.1,3.43263603]
[1642665614597,2.42698752,3140.4,3140.2,5.04614]
[1642665614794,2.42698752,3140.4,3140.2,2.6884333]
[1642665614995,2.42698752,3140.4,3140.3,2.30385285]
[1642665615295,2.42812436,3140.4,3140.3,2.30385285]
[1642665616296,2.42812436,3140.4,3140.3,4.65385285]
[1642665616597,4.03978342,3141.1,3140.4,5.15]
[1642665616849,4.03978342,3141.1,3140.6,0.796]
[1642665617044,4.03978342,3141.1,3140.8,0.00385285]
[1642665617244,4.03978342,3141.1,3140.6,2.50121448]
[1642665617445,4.03978342,3141.1,3140.7,0.3]
[1642665617643,4.03978342,3141.1,3140.8,0.1273]
[1642665617844,4.03978342,3141.1,3141.0,4.0586]
[1642665618044,4.03978342,3141.1,3141.0,4.0273]
[1642665618245,4.04376239,3141.1,3141.0,4.3273]
[1642665618444,0.1273,3142.1,3141.0,4.3273]
[1642665618445,12.59213987,3142.5,3142.1,1.13822228]
[1642665618648,12.59213987,3142.5,3142.2,0.02930377]
[1642665618845,4.95565596,3143.4,3142.5,0.7955053]
[1642665619044,4.95565596,3143.4,3142.7,0.79553]
[1642665619244,0.01023162,3142.9,3142.8,0.01048114]
[1642665619448,0.01023162,3142.9,3142.8,5.2772]
[1642665619647,0.01023162,3142.9,3142.8,5.5772]
[1642665619948,0.01023162,3142.9,3142.8,5.2772]
[1642665620150,4.95565596,3143.4,3143.0,0.015757]
[1642665620347,6.18991469,3143.4,3142.8,0.5858]
[1642665620610,6.18991469,3143.4,3142.8,0.1272]
[1642665620611,0.00227369,3143.3,3142.8,0.1272]
[1642665620810,0.00227369,3143.3,3142.3,1.59112]
[1642665620811,0.00227369,3143.3,3142.4,0.1272]
[1642665621010,0.12890527,3143.2,3142.3,1.89112]
[1642665621216,0.12890527,3143.2,3142.5,0.00227369]
[1642665621217,0.00170527,3143.2,3142.5,0.00227369]
[1642665621409,0.1272,3143.3,3142.5,0.00227369]
[1642665621410,0.12833685,3143.1,3142.5,0.00227369]
[1642665621608,1.35027837,3142.6,3141.9,0.7957]
[1642665621811,1.35027837,3142.6,3142.0,0.00511581]
[1642665622008,0.1272,3142.5,3142.0,0.00511581]
[1642665622208,18.66449209,3143.2,3141.0,0.29628731]
[1642665622209,5.2662316,3143.1,3141.7,0.00682108]
[1642665622410,6.2662316,3143.1,3141.5,0.00795793]
[1642665622610,0.16621471,3143.0,3141.3,0.00909478]
[1642665622911,1.22131396,3141.6,3141.2,0.0096632]
[1642665623116,1.28227608,3142.3,3141.2,0.0096632]
[1642665623318,3.2292988,3142.2,3141.2,0.0096632]
[1642665623514,3.2292988,3142.2,3141.3,0.1273]
[1642665623714,3.2292988,3142.2,3141.1,0.01023162]
[1642665623915,3.2292988,3142.2,3141.4,0.00852635]
[1642665624114,1.49641876,3141.6,3141.1,0.01023162]
[1642665624350,3.05708641,3141.5,3141.1,0.01023162]
[1642665624547,1.2262268,3141.4,3141.1,0.01023162]
[1642665624747,3.42168817,3141.3,3141.2,0.00385285]
[1642665624946,1.49641876,3141.6,3141.2,0.00385285]
[1642665624947,8.45627345,3141.5,3141.2,0.00385285]
[1642665625146,8.45627345,3141.5,3141.2,0.0096632]
[1642665625347,8.45627345,3141.5,3141.3,0.00909478]
[1642665625546,3.29285739,3141.4,3140.4,0.01421059]
[1642665625749,4.9481,3141.5,3140.7,1.53184433]
[1642665626148,4.9481,3141.5,3140.8,0.01193689]
[1642665626347,2.83282005,3141.4,3141.0,0.00385285]
[1642665626748,2.83282005,3141.4,3141.1,0.01023162]
[1642665627150,2.83282005,3141.4,3140.8,0.01193689]
[1642665627348,2.96012005,3141.4,3140.8,0.01193689]
[1642665627549,2.83282005,3141.4,3140.8,0.80789799]
[1642665627749,2.83282005,3141.4,3140.8,0.7959611]
[1642665627951,4.9481,3141.5,3141.1,0.00385285]
[1642665628195,4.9481,3141.5,3140.9,0.01136847]
[1642665628396,0.1273,3141.4,3141.2,0.0096632]
[1642665628598,1.30533791,3141.3,3140.6,0.01307374]
[1642665629400,1.30533791,3141.3,3141.0,0.00385285]
[1642665629599,1.30533791,3141.3,3140.6,0.01307374]
[1642665629799,1.30533791,3141.3,3141.1,0.01023162]
[1642665630000,1.30533791,3141.3,3140.4,0.01421059]
[1642665630202,0.1273,3141.4,3140.5,0.1273]
[1642665630401,4.9481,3141.5,3140.5,0.1273]
[1642665630602,4.9481,3141.5,3140.6,0.01307374]
[1642665631001,4.9481,3141.5,3141.0,0.00385285]
[1642665631207,4.9481,3141.5,3140.7,0.79603]
[1642665631401,1.5155853,3141.4,3141.1,0.01023162]
[1642665631602,2.39622568,3141.3,3140.8,0.01193689]
[1642665631857,0.1273,3141.3,3140.8,0.01193689]
[1642665632050,1.1273,3141.3,3140.7,3.2]
[1642665632450,2.67981199,3141.2,3140.8,0.01193689]
[1642665632651,5.8023929,3141.0,3140.9,0.00385285]
[1642665632849,5.9296929,3141.0,3140.8,0.01193689]
[1642665633049,4.85,3140.8,3140.7,3.2]
[1642665633451,4.85,3140.8,3140.7,3.21250532]
[1642665633854,4.85,3140.8,3140.7,3.2]
[1642665634052,1.4023929,3141.0,3140.7,3.20385285]
[1642665634256,0.79635,3141.1,3140.7,3.2]
[1642665634257,0.1273,3140.9,3140.7,3.2]
[1642665634455,0.1273,3141.0,3140.8,0.01193689]
[1642665634656,0.1273,3141.2,3140.8,0.01193689]
[1642665635157,1.1273,3141.2,3140.8,0.01193689]
[1642665635359,2.53264866,3141.2,3140.8,0.01193689]
[1642665635595,0.1273,3141.2,3141.0,0.00385285]
[1642665635796,0.1273,3141.2,3140.8,0.01193689]
[1642665635797,5.85,3141.1,3140.8,0.01193689]
[1642665635996,0.1273,3141.0,3140.7,3.2]
[1642665636599,1.1273,3141.0,3140.7,3.2]
[1642665637298,6.04119624,3140.9,3140.8,0.00385285]
[1642665637499,6.16849624,3140.9,3140.7,3.2]
[1642665637699,4.9773,3140.8,3140.7,3.2]
[1642665638100,4.9773,3140.8,3140.7,3.21250532]
[1642665638302,7.70242947,3140.8,3140.7,3.21250532]
[1642665638500,4.9773,3140.8,3140.7,3.21250532]
[1642665638702,5.9773,3140.8,3140.7,3.21635817]
[1642665639547,5.85,3140.8,3140.7,3.21635817]
[1642665639747,4.85,3140.8,3140.7,3.21635817]
[1642665639949,4.85,3140.8,3139.7,0.1273]
[1642665639950,8.61500947,3140.8,3139.7,0.1273]
[1642665640150,5.9574,3140.7,3139.6,0.137377]
[1642665640350,5.68193,3140.6,3139.8,0.00511581]
[1642665640553,0.1273,3140.5,3139.8,0.00511581]
[1642665640951,2.6944563,3140.4,3139.8,0.00511581]
[1642665641151,3.312851,3140.3,3139.8,0.00511581]
[1642665641851,1.0,3140.2,3139.8,0.00511581]
[1642665642053,3.97308433,3140.1,3139.8,0.00511581]
[1642665642950,3.97308433,3140.1,3139.8,3.20511581]
[1642665643195,1.42886921,3139.9,3139.8,3.20511581]
[1642665643395,4.63456991,3139.9,3139.8,3.2]
[1642665643594,4.76186991,3139.9,3139.8,3.2]
[1642665643794,3.3330007,3139.9,3139.8,3.2]
[1642665644197,3.2057007,3139.9,3139.8,3.2]
[1642665646402,3.2057007,3139.9,3139.8,3.19]
[1642665648246,3.2057007,3139.9,3139.6,0.01]
[1642665648247,4.85,3139.8,3139.6,0.01]
[1642665648447,8.47863833,3139.7,3139.6,0.01]
[1642665648648,4.15,3139.6,3138.6,0.1273]
[1642665648846,3.77731649,3139.5,3138.6,0.1273]
[1642665649046,4.77731649,3139.5,3138.7,0.01136847]
[1642665649454,1.16802888,3139.2,3138.5,0.01250531]
[1642665649652,2.95053502,3139.1,3138.5,0.01250531]
[1642665650697,2.92864113,3139.6,3138.6,0.79655]
[1642665651099,2.92864113,3139.6,3138.7,0.3]
[1642665651499,2.92864113,3139.6,3138.8,0.01080004]
[1642665651500,1.15558182,3139.5,3138.8,0.01080004]
[1642665651701,3.20906913,3139.4,3138.8,0.01080004]
[1642665652101,3.20906913,3139.4,3138.6,0.01193689]